fUSD/lending_fUSD_20260111
["ID","MTS","AMOUNT","RATE_DAILY","PERIOD"]
[401312161,1768127442060,-166.66,0.00017885,2]
[401312162,1768127442069,-25000.0,0.00017891,3]
[401312165,1768127442079,-25000.0,0.000179,3]
[401312166,1768127442088,-1812.36591962,0.000179,2]
[401312168,1768127442097,-1492.09,0.000179,2]
[401312171,1768127442106,-658.39211366,0.000179,3]
[401312172,1768127442115,-1000.0,0.000179,2]
[401312175,1768127442124,-341.09361904,0.000179,3]
[401312177,1768127442133,-1141.06272098,0.000179,2]
[401312178,1768127442143,-6637.69104354,0.000179,2]
[401312180,1768127442152,-209.58331388,0.000179,2]
[401312183,1768127442161,-500.0,0.000179,2]
[401312184,1768127442170,-500.0,0.000179,2]
[401312186,1768127442179,-500.0,0.000179,2]
[401312189,1768127442189,-500.0,0.000179,2]
[401312190,1768127442198,-500.0,0.000179,2]
[401312193,1768127442211,-500.0,0.000179,2]
[401312194,1768127442221,-500.0,0.000179,2]
[401312197,1768127442231,-500.0,0.000179,2]
[401312199,1768127442240,-500.0,0.000179,2]
[401312201,1768127442249,-500.0,0.000179,2]
[401312203,1768127442259,-500.0,0.000179,2]
[401312205,1768127442268,-500.0,0.000179,2]
[401312207,1768127442277,-500.0,0.000179,2]
[401312209,1768127442287,-500.0,0.000179,2]
[401312211,1768127442297,-500.0,0.000179,2]
[401312213,1768127442306,-500.0,0.000179,2]
[401312215,1768127442315,-500.0,0.000179,2]
[401312217,1768127442324,-5568.0,0.000179,2]
[401312219,1768127442333,-150.0,0.00017931,2]
[401312221,1768127442343,-2468.6329303,0.00017997,2]
[401312223,1768127442352,-13175.1899761,0.00017997,2]
[401312225,1768127442361,-3508.7748601,0.00017997,2]
[401312227,1768127442370,-270.08464291,0.00017999,2]
[401312229,1768127442379,-300.0,0.00017999,2]
[401312231,1768127442388,-300.0,0.00017999,2]
[401312233,1768127442397,-548.49326873,0.00017999,2]
[401312235,1768127442407,-150.0,0.00018,2]
[401312237,1768127442416,-2594308.99723383,0.00018,2]
[401312310,1768127443127,-1.7e-07,0.00018,2]
[401312429,1768127444038,-38352.58334677,0.00018,2]
[401312433,1768127444049,-16267.0991171,0.00018,2]
[401312698,1768127446230,-500.0,0.00015999,2]
[401312701,1768127446240,-1069.39829097,0.0001764,2]
[401312704,1768127446250,-52549.3306408,0.00018,2]
[401312708,1768127446264,-6414.2,0.00018,2]
[401313226,1768127595902,176.25,0.0002548,120]
[401313245,1768128631589,-191.92228883,0.00015924,2]
[401313246,1768128631599,-151.0,0.00015976,2]
[401313247,1768128631609,-151.0,0.00015976,2]
[401313248,1768128631618,-151.0,0.00015979,2]
[401313249,1768128631629,-86.4662631,0.00015979,2]
[401313250,1768128631650,-64.5337369,0.00015979,2]
[401313251,1768128631661,-483.23934478,0.00015999,2]
[401313261,1768128637643,-16.76065522,0.00015999,2]
[401313262,1768128637652,-500.0,0.00015999,2]
[401313263,1768128637661,-500.0,0.00015999,2]
[401313264,1768128637671,-250.0,0.00016012,2]
[401313265,1768128637680,-500.0,0.00016199,2]
[401313266,1768128637690,-1200.0,0.00016199,2]
[401313267,1768128637700,-150.0,0.000162,2]
[401313268,1768128637709,-150.0,0.000162,2]
[401313269,1768128637719,-150.0,0.000162,2]
[401313271,1768128637728,-150.0,0.000162,2]
[401313273,1768128637737,-300.0,0.00016277,2]
[401313275,1768128637746,-150.0,0.00016278,2]
[401313277,1768128637756,-150.0,0.00016357,2]
[401313279,1768128637765,-500.0,0.0001642,2]
[401313280,1768128637773,-500.0,0.0001642,2]
[401313283,1768128637783,-150.0,0.00016435,2]
[401313285,1768128637792,-451.9941621,0.00016438,2]
[401313454,1768128639556,-570.39513047,0.00016438,2]
[401313456,1768128639567,-2280.9972858,0.00016438,2]
[401313458,1768128639578,-1956.161805,0.00016438,2]
[401313468,1768128639658,-5418.30161663,0.00016438,2]
[401313470,1768128639667,-807.0,0.00016438,2]
[401313472,1768128639677,-1390.0,0.00016438,2]
[401313474,1768128639686,-150.0,0.00016513,2]
[401313476,1768128639695,-169.61,0.00016538,2]
[401313478,1768128639705,-1000.0,0.00016577,2]
[401313480,1768128639714,-1455.57,0.00016591,2]
[401313482,1768128639723,-150.0,0.00016591,2]
[401313484,1768128639732,-341.64,0.00016605,2]
[401313486,1768128639742,-150.0,0.0001667,2]
[401313488,1768128639750,-550.0,0.00016675,2]
[401313490,1768128639759,-500.0,0.00016676,2]
[401313492,1768128639768,-299.99,0.00016745,4]
[401313494,1768128639777,-150.99,0.00016745,2]
[401313496,1768128639786,-999.99,0.00016745,2]
[401313498,1768128639795,-1314.58,0.00016746,2]
[401313500,1768128639804,-150.0,0.00016748,2]
[401313502,1768128639813,-999.0,0.00016804,3]
[401313503,1768128639822,-610.91,0.00016813,2]
[401313505,1768128639831,-150.0,0.00016826,2]
[401313508,1768128639841,-253.97,0.00016829,2]
[401313510,1768128639850,-150.0,0.00016904,2]
[401313511,1768128639859,-193.45154101,0.00016916,2]
[401313513,1768128639869,-18871.7,0.00016927,2]
[401313515,1768128639879,-150.0,0.00016983,2]
[401313517,1768128639888,-176.25,0.00016987,2]
[401313519,1768128639897,-250.0,0.00017,2]
[401313521,1768128639907,-500.0,0.00017007,2]
[401313523,1768128639917,-896.0,0.00017037,2]
[401313525,1768128639930,-191.92228883,0.00017039,2]
[401313527,1768128639939,-896.0,0.00017059,2]
[401313529,1768128639948,-150.0,0.00017061,2]
[401313531,1768128639959,-500.0,0.00017062,2]
[401313533,1768128639970,-500.0,0.00017073,2]
[401313535,1768128639980,-500.0,0.00017073,2]
[401313537,1768128639990,-586.16911209,0.00017073,2]
[401313539,1768128640000,-500.0,0.00017073,2]
[401313541,1768128640009,-500.0,0.00017073,2]
[401313543,1768128640019,-501.8033265,0.00017073,2]
[401313545,1768128640028,-553.64373807,0.00017099,2]
[401313547,1768128640037,-620.0,0.00017099,2]
[401313549,1768128640047,-322.6107,0.00017099,2]
[401313551,1768128640056,-155.74193708,0.00017099,2]
[401313553,1768128640065,-578.20924308,0.00017099,2]
[401313555,1768128640075,-896.0,0.00017112,2]
[401313557,1768128640084,-500.0,0.00017117,2]
[401313559,1768128640093,-150.0,0.00017139,2]
[401313561,1768128640102,-500.0,0.00017171,2]
[401313563,1768128640111,-150.0,0.00017175,2]
[401313565,1768128640119,-150.0,0.00017175,2]
[401313567,1768128640128,-150.0,0.00017217,2]
[401313569,1768128640137,-348.0,0.00017226,2]
[401313571,1768128640146,-150.0,0.0001723,2]
[401313573,1768128640156,-150.0,0.0001723,2]
[401313575,1768128640165,-150.0,0.00017285,2]
[401313577,1768128640174,-150.0,0.00017296,2]
[401313580,1768128640183,-150.0,0.00017325,2]
[401313581,1768128640193,-5230.0,0.00017327,2]
[401313584,1768128640202,-150.0,0.00017339,2]
[401313586,1768128640212,-150.0,0.00017374,2]
[401313587,1768128640221,-150.0,0.0001738,2]
[401313589,1768128640231,-171.45,0.00017391,2]
[401313592,1768128640240,-250.0,0.00017394,2]
[401313594,1768128640251,-150.0,0.00017435,2]
[401313595,1768128640260,-5230.0,0.00017449,2]
[401313597,1768128640270,-150.0,0.00017452,2]
[401313599,1768128640279,-169.61,0.00017456,2]
[401313602,1768128640289,-150.0,0.00017489,2]
[401313604,1768128640298,-2000.0,0.000175,2]
[401313605,1768128640307,-2070.66751623,0.000175,2]
[401313608,1768128640317,-150.0,0.0001753,2]
[401313610,1768128640326,-4429.0,0.00017533,2]
[401313612,1768128640335,-150.0,0.00017544,2]
[401313613,1768128640345,-270.0,0.00017557,2]
[401313616,1768128640354,-5230.0,0.00017558,2]
[401313617,1768128640363,-150.0,0.0001757,2]
[401313619,1768128640373,-150.0,0.0001757,2]
[401313621,1768128640382,-150.0,0.0001757,2]
[401313623,1768128640392,-150.0,0.0001757,2]
[401313625,1768128640402,-150.0,0.0001757,2]
[401313627,1768128640411,-255.38896935,0.0001757,2]
[401313629,1768128640420,-150.0,0.0001757,2]
[401313631,1768128640430,-221.72177176,0.0001757,2]
[401313633,1768128640439,-213.63364475,0.0001757,2]
[401313635,1768128640449,-456.80073785,0.00017579,2]
[401313637,1768128640458,-1314.58,0.00017583,2]
[401313639,1768128640467,-250.0,0.00017599,2]
[401313641,1768128640475,-195.0,0.00017599,2]
[401313643,1768128640485,-250.0,0.00017599,2]
[401313645,1768128640493,-150.0,0.00017609,2]
[401313647,1768128640502,-1000.0,0.00017621,2]
[401313649,1768128640511,-1000.0,0.00017621,2]
[401313651,1768128640520,-1000.0,0.00017621,2]
[401313653,1768128640529,-213.36883848,0.00017625,2]
[401313655,1768128640538,-150.0,0.00017625,2]
[401313657,1768128640547,-291.21700868,0.00017625,2]
[401313659,1768128640556,-150.0,0.00017625,2]
[401313661,1768128640565,-150.0,0.00017625,2]
[401313663,1768128640574,-150.0,0.00017625,2]
[401313665,1768128640583,-5230.0,0.00017633,2]
[401313666,1768128640592,-2424.60311288,0.0001764,2]
[401313669,1768128640601,-150.0,0.0001768,2]
[401313671,1768128640611,-200.0,0.0001768,2]
[401313672,1768128640620,-150.0,0.00017687,2]
[401313673,1768128640629,-150.0,0.00017734,2]
[401313674,1768128640638,-150.0,0.00017765,2]
[401313675,1768128640647,-610.984,0.00017772,2]
[401313676,1768128640656,-150.0,0.00017789,2]
[401313677,1768128640665,-1631.0,0.00017796,2]
[401313678,1768128640673,-362.29310901,0.000178,2]
[401313679,1768128640683,-1000.0,0.000178,2]
[401313680,1768128640691,-4076.43297332,0.000178,2]
[401313681,1768128640700,-3982.61462616,0.000178,2]
[401313682,1768128640710,-2500.0,0.000178,2]
[401313683,1768128640718,-4076.4329733,0.00017811,2]
[401313685,1768128640727,-3982.61462612,0.00017811,2]
[401313687,1768128640736,-362.29310896,0.00017817,2]
[401313689,1768128640745,-4076.4329733,0.00017822,2]
[401313691,1768128640755,-3982.61462612,0.00017822,2]
[401313693,1768128640764,-362.29310896,0.00017833,2]
[401313695,1768128640773,-4076.4329733,0.00017833,2]
[401313697,1768128640782,-3982.61462612,0.00017833,2]
[401313699,1768128640791,-1179.0,0.00017842,2]
[401313701,1768128640800,-150.0,0.00017843,2]
[401313703,1768128640810,-250.0,0.00017844,2]
[401313739,1768128641140,-4076.4329733,0.00017844,2]
[401313741,1768128641153,-3982.61462612,0.00017844,2]
[401313743,1768128641164,-362.29310896,0.0001785,2]
[401313745,1768128641173,-200.0,0.00017855,2]
[401313747,1768128641182,-4076.4329733,0.00017856,2]
[401313749,1768128641192,-3982.61462612,0.00017856,2]
[401313751,1768128641201,-200.0,0.00017856,2]
[401313753,1768128641211,-362.29310896,0.00017867,2]
[401313755,1768128641220,-4076.4329733,0.00017867,2]
[401313757,1768128641229,-3982.61462612,0.00017867,2]
[401313759,1768128641239,-4429.0,0.00017878,2]
[401313761,1768128641248,-4076.4329733,0.00017878,2]
[401313763,1768128641257,-3982.61462612,0.00017878,2]
[401313765,1768128641266,-362.29310896,0.00017883,2]
[401313767,1768128641275,-4076.4329733,0.00017889,2]
[401313769,1768128641284,-3982.61462612,0.00017889,2]
[401313771,1768128641294,-7946.05,0.0001789,2]
[401313773,1768128641303,-7946.05,0.0001789,2]
[401313775,1768128641313,-164.9,0.0001789,2]
[401313777,1768128641322,-164.9,0.0001789,2]
[401313779,1768128641331,-270.08464291,0.00017899,2]
[401313781,1768128641340,-163.18082349,0.00017899,2]
[401313783,1768128641350,-500.0,0.00017899,2]
[401313785,1768128641359,-239.03249835,0.00017899,2]
[401313787,1768128641368,-533.84916555,0.00017899,2]
[401313789,1768128641377,-25000.0,0.000179,3]
[401313791,1768128641386,-50787.40293217,0.000179,2]
[401313794,1768128641399,-160983.75077921,0.000179,2]
[401313796,1768128641410,-971.65257382,0.000179,2]
[401313798,1768128641421,-21041.45799257,0.000179,2]
[401313800,1768128641432,-4348.12435315,0.000179,2]
[401313802,1768128641443,-5998.95713694,0.000179,2]
[401313804,1768128641454,-840.49522981,0.000179,2]
[401313809,1768128641489,-755028.15900233,0.000179,2]
[401313811,1768128641499,-1000.0,0.000179,2]
[401313813,1768128641508,-362.29310896,0.000179,2]
[401313815,1768128641517,-25000.0,0.000179,3]
[401313817,1768128641526,-1000.0,0.000179,2]
[401313819,1768128641535,-658.39211366,0.000179,3]
[401313821,1768128641545,-4076.4329733,0.000179,2]
[401313823,1768128641554,-3982.61462612,0.000179,2]
[401313825,1768128641563,-341.09361904,0.000179,3]
[401313827,1768128641572,-1662.96,0.000179,2]
[401313829,1768128641583,-4336.74985826,0.000179,2]
[401313831,1768128641593,-7054.62420004,0.000179,2]
[401313833,1768128641602,-9963.23485642,0.000179,2]
[401313835,1768128641612,-13022.44054704,0.000179,2]
[401313837,1768128641621,-500.0,0.000179,2]
[401313839,1768128641630,-500.0,0.000179,2]
[401313841,1768128641639,-500.0,0.000179,2]
[401313843,1768128641648,-500.0,0.000179,2]
[401313845,1768128641657,-500.0,0.000179,2]
[401313847,1768128641666,-500.0,0.000179,2]
[401313849,1768128641675,-500.0,0.000179,2]
[401313851,1768128641684,-500.0,0.000179,2]
[401313853,1768128641693,-500.0,0.000179,2]
[401313855,1768128641703,-500.0,0.000179,2]
[401313857,1768128641712,-500.0,0.000179,2]
[401313859,1768128641721,-500.0,0.000179,2]
[401313861,1768128641730,-500.0,0.000179,2]
[401313863,1768128641739,-500.0,0.000179,2]
[401313865,1768128641748,-500.0,0.000179,2]
[401313867,1768128641757,-500.0,0.000179,2]
[401313869,1768128641767,-500.0,0.000179,2]
[401313871,1768128641776,-5859.0,0.000179,2]
[401313873,1768128641785,-1179.0,0.00017905,2]
[401313876,1768128641794,-150.0,0.00017922,2]
[401313878,1768128641804,-164.9,0.0001799,2]
[401313880,1768128641814,-164.9,0.0001799,2]
[401313882,1768128641823,-2468.6329303,0.00017996,2]
[401313884,1768128641834,-13106.8733006,0.00017996,2]
[401313886,1768128641843,-3425.2053981,0.00017996,2]
[401313888,1768128641852,-1467.66845712,0.00017999,5]
[401313890,1768128641862,-300.0,0.00017999,2]
[401313892,1768128641871,-300.0,0.00017999,2]
[401313894,1768128641881,-548.49326873,0.00017999,2]
[401313896,1768128641890,-300.0,0.00017999,2]
[401313898,1768128641900,-150.0,0.00018,2]
[401313900,1768128641909,-1916724.52129511,0.00018,2]
[401313904,1768128641943,-653.76080498,0.00018,2]
[401313906,1768128641954,-534.0,0.00018,2]
[401313908,1768128641966,-422.28753396,0.00018,2]
[401314115,1768128643944,-933.76798665,0.00018,2]
[401314127,1768128644049,-1361.07983159,0.00018,2]
[401314129,1768128644060,-266.02857549,0.00018,2]
[401314260,1768128645406,-375.67493541,0.00018,2]
[401314642,1768128944201,5035.0,0.00015,2]
[401314643,1768128950513,178.42,8.432e-05,2]
[401314662,1768129831582,-150.0,0.00015353,2]
[401314663,1768129831592,-195.0,0.0001538,2]
[401314664,1768129831602,-248.05759627,0.0001538,2]
[401314665,1768129831610,-2739.21,0.00015406,2]
[401314666,1768129831619,-435.15366516,0.00015551,2]
[401314667,1768129831630,-2055.69617374,0.00015551,2]
[401314668,1768129831639,-582.18620081,0.00015551,2]
[401314669,1768129831671,-324.27327818,0.00015551,2]
[401314670,1768129831682,-253.75974854,0.00015551,2]
[401314671,1768129831739,-339.78077247,0.00015551,2]
[401314672,1768129831749,-200.0,0.00015583,2]
[401314673,1768129831758,-200.0,0.00015691,2]
[401314674,1768129831769,-1200.0,0.00015737,2]
[401314675,1768129831778,-2564.69,0.00015738,2]
[401314676,1768129831790,-500.0,0.00015824,2]
[401314677,1768129831801,-1000.0,0.00015918,2]
[401314678,1768129831811,-6626.46,0.00015968,2]
[401314679,1768129831820,-167.41437807,0.000161,2]
[401314680,1768129831830,-229.9303262,0.000161,2]
[401314681,1768129831839,-1123.10201108,0.0001614,2]
[401314682,1768129831849,-269.76524814,0.00016141,2]
[401314683,1768129831858,-500.0,0.00016141,2]
[401314684,1768129831867,-150.32869612,0.00016141,2]
[401314685,1768129831878,-184.16121508,0.00016141,2]
[401314686,1768129831887,-639.24349511,0.00016141,2]
[401314687,1768129831896,-550.0,0.00016141,2]
[401314689,1768129831906,-150.0,0.00016141,2]
[401314691,1768129831915,-917384.74483133,0.00016142,2]
[401314693,1768129831927,-2878.69273974,0.00016142,2]
[401314697,1768129831962,-4963.20359295,0.00016142,2]
[401314875,1768129839915,-4574.1801,0.00016142,2]
[401314878,1768129839927,-1256.38003316,0.00016142,2]
[401314884,1768129839974,-398.52112028,0.00016142,2]
[401314890,1768129840025,-68544.27758254,0.00016142,2]
[401314892,1768129840034,-150.0,0.000162,2]
[401314894,1768129840044,-165.088,0.00016241,2]
[401314896,1768129840054,-886.631,0.00016241,2]
[401314898,1768129840063,-37332.69315476,0.00016242,2]
[401314900,1768129840073,-150.0,0.000164,2]
[401314902,1768129840083,-226.62,0.00016438,2]
[401314904,1768129840093,-800.0,0.00016438,2]
[401314906,1768129840103,-9999.99,0.00016439,2]
[401314908,1768129840112,-2607.10348736,0.00016459,2]
[401314910,1768129840121,-191.07861084,0.00016481,2]
[401314912,1768129840131,-202.27919226,0.00016481,2]
[401314914,1768129840140,-151.0,0.00016481,2]
[401314916,1768129840149,-151.0,0.00016481,2]
[401314918,1768129840157,-235.01688217,0.00016481,2]
[401314920,1768129840166,-1467.66845712,0.0001649,5]
[401314922,1768129840176,-500.0,0.0001649,2]
[401314924,1768129840185,-174.1373823,0.0001649,2]
[401314926,1768129840194,-535.89319473,0.0001649,2]
[401314928,1768129840203,-500.0,0.0001649,2]
[401314930,1768129840213,-519.66992392,0.0001649,2]
[401314932,1768129840223,-500.0,0.0001649,2]
[401314934,1768129840232,-500.0,0.0001649,2]
[401314936,1768129840241,-500.0,0.0001649,2]
[401314938,1768129840251,-500.0,0.0001649,2]
[401314940,1768129840260,-615.06251518,0.0001649,2]
[401314942,1768129840270,-500.0,0.0001649,2]
[401314944,1768129840279,-512.90817352,0.0001649,2]
[401314946,1768129840288,-1000.0,0.00016515,2]
[401314948,1768129840298,-747.0,0.00016559,2]
[401314950,1768129840307,-150.0,0.000166,2]
[401314952,1768129840317,-2607.10348732,0.00016619,2]
[401314954,1768129840327,-253.56,0.00016681,2]
[401314956,1768129840336,-274.89,0.00016703,2]
[401314958,1768129840346,-158.73,0.00016712,2]
[401314960,1768129840355,-500.0,0.00016764,5]
[401314962,1768129840365,-2607.10348732,0.00016779,2]
[401314964,1768129840374,-747.0,0.00016793,2]
[401314966,1768129840384,-150.0,0.000168,2]
[401314968,1768129840395,-747.0,0.00016831,2]
[401314970,1768129840405,-466.97,0.00016878,2]
[401314972,1768129840414,-747.0,0.0001688,2]
[401314974,1768129840425,-250.0,0.00016889,2]
[401314976,1768129840435,-195.0,0.00016889,2]
[401314978,1768129840445,-300.0,0.00016889,2]
[401314981,1768129840454,-2363.81814756,0.00016889,2]
[401314982,1768129840464,-300.0,0.00016889,2]
[401314984,1768129840473,-2607.10348732,0.00016939,2]
[401314986,1768129840482,-1862.70122449,0.00016946,2]
[401314988,1768129840492,-150.0,0.00017,2]
[401314991,1768129840502,-1199.0,0.00017015,2]
[401314992,1768129840511,-3240.0,0.00017035,2]
[401314994,1768129840521,-738.63836252,0.00017059,2]
[401314997,1768129840531,-187.53,0.00017068,2]
[401314999,1768129840540,-500.0,0.00017073,2]
[401315000,1768129840550,-500.0,0.00017073,2]
[401315002,1768129840559,-500.0,0.00017073,2]
[401315005,1768129840569,-500.0,0.00017073,2]
[401315006,1768129840578,-322.6107,0.00017099,2]
[401315008,1768129840588,-620.0,0.00017099,2]
[401315010,1768129840597,-578.20924308,0.00017099,2]
[401315013,1768129840607,-553.64373807,0.00017099,2]
[401315015,1768129840616,-2607.10348732,0.00017099,2]
[401315017,1768129840627,-1000.0,0.00017112,2]
[401315018,1768129840636,-191.07861083,0.00017191,2]
[401315020,1768129840645,-150.0,0.000172,2]
[401315022,1768129840654,-346.0,0.00017255,2]
[401315024,1768129840664,-2607.10348732,0.0001726,2]
[401315026,1768129840673,-1680.0,0.00017298,2]
[401315028,1768129840683,-168.0,0.00017307,2]
[401315030,1768129840692,-900.0,0.00017338,2]
[401315032,1768129840701,-150.0,0.000174,2]
[401315034,1768129840711,-168.0,0.00017414,2]
[401315036,1768129840720,-2607.10348732,0.0001742,2]
[401315038,1768129840731,-168.0,0.00017492,2]
[401315040,1768129840742,-1000.0,0.000175,2]
[401315043,1768129840754,-150.0,0.0001757,2]
[401315045,1768129840765,-1006.33725048,0.0001758,2]
[401315046,1768129840775,-2607.10348732,0.0001758,2]
[401315048,1768129840784,-150.0,0.000176,2]
[401315050,1768129840793,-1000.0,0.00017621,2]
[401315052,1768129840804,-743.38858154,0.00017621,2]
[401315054,1768129840814,-1000.0,0.00017621,2]
[401315056,1768129840823,-1000.0,0.00017621,2]
[401315059,1768129840837,-150.0,0.00017625,2]
[401315061,1768129840846,-1212.30155644,0.0001764,2]
[401315063,1768129840856,-574.12855637,0.00017647,2]
[401315065,1768129840865,-150.0,0.0001768,2]
[401315067,1768129840875,-1000.0,0.000177,2]
[401315069,1768129840885,-1000.0,0.00017709,2]
[401315071,1768129840894,-168.0,0.0001773,2]
[401315073,1768129840905,-150.0,0.00017734,2]
[401315075,1768129840914,-1006.33725048,0.0001774,2]
[401315077,1768129840923,-2607.10348732,0.0001774,2]
[401315079,1768129840932,-1000.0,0.00017783,2]
[401315081,1768129840941,-150.0,0.00017789,2]
[401315083,1768129840951,-150.0,0.000178,2]
[401315085,1768129840961,-1000.0,0.000178,2]
[401315087,1768129840970,-539.82265,0.0001782,2]
[401315089,1768129840980,-539.82265,0.0001782,2]
[401315091,1768129840989,-539.82265,0.0001782,2]
[401315093,1768129841000,-539.82265,0.0001782,2]
[401315095,1768129841009,-2201.92484839,0.0001783,2]
[401315097,1768129841019,-250.0,0.00017844,2]
[401315099,1768129841028,-200.0,0.00017856,2]
[401315101,1768129841037,-500.0,0.00017899,2]
[401315103,1768129841046,-500.0,0.00017899,2]
[401315105,1768129841055,-500.0,0.00017899,2]
[401315107,1768129841064,-500.0,0.00017899,2]
[401315109,1768129841073,-500.0,0.00017899,2]
[401315111,1768129841082,-500.0,0.00017899,2]
[401315113,1768129841091,-500.0,0.00017899,2]
[401315115,1768129841100,-500.0,0.00017899,2]
[401315117,1768129841110,-500.0,0.00017899,2]
[401315119,1768129841119,-1344.31,0.00017899,2]
[401315121,1768129841128,-25000.0,0.000179,3]
[401315123,1768129841137,-191.07861083,0.000179,2]
[401315125,1768129841147,-658.39211366,0.000179,3]
[401315127,1768129841157,-1006.33725048,0.000179,2]
[401315129,1768129841166,-2607.10348732,0.000179,2]
[401315131,1768129841175,-292.48556667,0.000179,2]
[401315133,1768129841184,-292.48556652,0.000179,2]
[401315135,1768129841194,-292.48556652,0.000179,2]
[401315137,1768129841203,-292.48556652,0.000179,2]
[401315139,1768129841212,-292.48556652,0.000179,2]
[401315141,1768129841222,-292.48556652,0.000179,2]
[401315143,1768129841231,-292.48556652,0.000179,2]
[401315145,1768129841240,-292.48556652,0.000179,2]
[401315147,1768129841249,-292.48556652,0.000179,2]
[401315149,1768129841259,-292.48556652,0.000179,2]
[401315151,1768129841268,-1141.06272098,0.000179,2]
[401315153,1768129841277,-292.48556652,0.000179,2]
[401315155,1768129841286,-292.48556652,0.000179,2]
[401315157,1768129841295,-341.09361904,0.000179,3]
[401315159,1768129841304,-292.48556652,0.000179,2]
[401315161,1768129841314,-292.48556652,0.000179,2]
[401315163,1768129841323,-292.48556652,0.000179,2]
[401315165,1768129841332,-7505.0,0.000179,2]
[401315167,1768129841342,-150.0,0.00017986,2]
[401315169,1768129841351,-239.27383131,0.00017986,2]
[401315171,1768129841361,-13124.7892151,0.00017996,2]
[401315173,1768129841370,-2468.6329303,0.00017996,2]
[401315175,1768129841380,-9160.6558057,0.00017996,2]
[401315177,1768129841389,-9160.6558058,0.00017996,2]
[401315179,1768129841399,-603344.5231062,0.00017996,2]
[401315181,1768129841409,-3407.4448464,0.00017996,2]
[401315183,1768129841419,-170.5309353,0.00017996,2]
[401315185,1768129841428,-166.9455236,0.00017999,2]
[401315187,1768129841438,-300.0,0.00017999,2]
[401315190,1768129841448,-300.0,0.00017999,2]
[401315192,1768129841458,-548.49326873,0.00017999,2]
[401315220,1768129841800,-300.0,0.00017999,2]
[401315222,1768129841812,-150.0,0.00018,2]
[401315224,1768129841821,-3520201.13551314,0.00018,2]
[401315227,1768129841837,-3364.13482477,0.00018,2]
[401315229,1768129841848,-539.63574858,0.00018,2]
[401315231,1768129841864,-505.60542929,0.00018,2]
[401315438,1768129843839,-500.0,0.00016946,2]
[401315440,1768129843848,-292.48556652,0.000179,2]
[401315442,1768129843858,-954149.44920383,0.00018,2]
[401315610,1768129845628,-292.48556652,0.000179,2]
[401315612,1768129845637,-5235.63007303,0.00018,2]
[401315628,1768129845786,-11177.99915104,0.00018,2]
[401315634,1768129845840,-28373.97888952,0.00018,2]
[401316082,1768130296017,185.06393926,0.00027397,120]
[401316083,1768130362214,3010.0,0.00015,10]
[401316095,1768130821546,1776.58,0.00015,2]
[401316096,1768130821569,185.79219787,0.00015,2]
[401316106,1768130911764,9814.20780213,0.00015,2]
[401316107,1768130911784,887.76520651,0.00015,2]
[401316126,1768130967895,-246.64,0.0001502,2]
[401316127,1768130967921,-231.83004513,0.00015055,2]
[401316144,1768131031810,-500.0,0.0001502,2]
[401316147,1768131031821,-26.40995487,0.00015055,2]
[401316148,1768131031830,-999.0,0.00015278,3]
[401316149,1768131031840,-195.0,0.00015299,2]
[401316150,1768131031849,-300.0,0.00015319,2]
[401316151,1768131031859,-1200.0,0.00015319,2]
[401316152,1768131031868,-9810.31220529,0.0001532,2]
[401316153,1768131031877,-2380.74473552,0.00015366,2]